fUST/lending_fUST_20260507
["ID","MTS","AMOUNT","RATE_DAILY","PERIOD"]
[421785857,1778153449000,-646.34,0.00012054,2]
[421785861,1778153449000,-151.0,0.000121,2]
[421785860,1778153449000,-3404.85197272,0.00012081,2]
[421785862,1778153449000,-151.0,0.000121,2]
[421785859,1778153449000,-500.0,0.00012054,2]
[421785866,1778153449000,-151.0,0.000123,2]
[421785869,1778153449000,-500.0,0.00012328,2]
[421785858,1778153449000,-1663.58,0.00012054,2]
[421785868,1778153449000,-861.1819,0.00012328,2]
[421785853,1778153449000,-640.42,0.00012054,2]
[421785864,1778153449000,-1000.0,0.00012217,2]
[421785865,1778153449000,-151.0,0.000123,2]
[421785871,1778153449000,-500.0,0.00012328,2]
[421785870,1778153449000,-153.34,0.00012328,2]
[421785878,1778153449000,-500.0,0.00012328,2]
[421785874,1778153449000,-500.0,0.00012328,2]
[421785872,1778153449000,-500.0,0.00012328,2]
[421785879,1778153449000,-500.0,0.00012328,2]
[421785880,1778153449000,-500.0,0.00012328,2]
[421785873,1778153449000,-500.0,0.00012328,2]
[421785875,1778153449000,-804.84,0.00012328,2]
[421785876,1778153449000,-500.0,0.00012328,2]
[421785877,1778153449000,-500.0,0.00012328,2]
[421785819,1778153449000,-500.0,0.00012054,2]
[421785867,1778153449000,-6873.73672916,0.00012328,2]
[421785848,1778153449000,-1196.29,0.00012054,2]
[421785863,1778153449000,-9546.55841438,0.00012157,2]
[421785847,1778153449000,-239.2,0.00012054,2]
[421785822,1778153449000,-688.82,0.00012054,2]
[421785846,1778153449000,-500.0,0.00012054,2]
[421785823,1778153449000,-500.0,0.00012054,2]
[421785825,1778153449000,-1102.59,0.00012054,2]
[421785824,1778153449000,-500.0,0.00012054,2]
[421785820,1778153449000,-500.0,0.00012054,2]
[421785831,1778153449000,-589.9,0.00012054,2]
[421785830,1778153449000,-500.0,0.00012054,2]
[421785829,1778153449000,-1053.66,0.00012054,2]
[421785828,1778153449000,-1437.04,0.00012054,2]
[421785827,1778153449000,-500.0,0.00012054,2]
[421785832,1778153449000,-8774.04,0.00012054,2]
[421785833,1778153449000,-789.33,0.00012054,2]
[421785834,1778153449000,-500.0,0.00012054,2]
[421785826,1778153449000,-500.0,0.00012054,2]
[421785837,1778153449000,-500.0,0.00012054,2]
[421785845,1778153449000,-562.47,0.00012054,2]
[421785843,1778153449000,-500.0,0.00012054,2]
[421785856,1778153449000,-500.0,0.00012054,2]
[421785854,1778153449000,-500.0,0.00012054,2]
[421785836,1778153449000,-6499.89,0.00012054,2]
[421785844,1778153449000,-725.65,0.00012054,2]
[421785835,1778153449000,-1433.04,0.00012054,2]
[421785855,1778153449000,-1835.42,0.00012054,2]
[421785841,1778153449000,-569.62,0.00012054,2]
[421785839,1778153449000,-3435.07,0.00012054,2]
[421785838,1778153449000,-500.0,0.00012054,2]
[421785840,1778153449000,-500.0,0.00012054,2]
[421785842,1778153449000,-500.0,0.00012054,2]
[421785912,1778153450000,-6499.89,0.00012328,2]
[421785930,1778153450000,-1663.58,0.00012328,2]
[421785923,1778153450000,-951.06,0.00012328,2]
[421785916,1778153450000,-500.0,0.00012328,2]
[421785917,1778153450000,-500.0,0.00012328,2]
[421785915,1778153450000,-3435.07,0.00012328,2]
[421785922,1778153450000,-1196.29,0.00012328,2]
[421785914,1778153450000,-500.0,0.00012328,2]
[421785918,1778153450000,-500.0,0.00012328,2]
[421785919,1778153450000,-725.65,0.00012328,2]
[421785928,1778153450000,-500.0,0.00012328,2]
[421785913,1778153450000,-500.0,0.00012328,2]
[421785933,1778153450000,-151.0,0.000124,2]
[421785938,1778153450000,-258.7926067,0.0001258,5]
[421785924,1778153450000,-500.0,0.00012328,2]
[421785931,1778153450000,-500.0,0.00012328,2]
[421785927,1778153450000,-1835.42,0.00012328,2]
[421785925,1778153450000,-627.65,0.00012328,2]
[421785935,1778153450000,-1500.0,0.00012468,2]
[421785926,1778153450000,-500.0,0.00012328,2]
[421785934,1778153450000,-9678.36024856,0.00012434,2]
[421785932,1778153450000,-543.56717284,0.00012374,2]
[421785947,1778153450000,-500.0,0.00012602,2]
[421785937,1778153450000,-258.7926067,0.0001258,3]
[421785941,1778153450000,-151.0,0.000126,2]
[421785936,1778153450000,-599.60298507,0.00012547,2]
[421785939,1778153450000,-1009.75376013,0.0001258,7]
[421785910,1778153450000,-500.0,0.00012328,2]
[421785929,1778153450000,-646.34,0.00012328,2]
[421785921,1778153450000,-500.0,0.00012328,2]
[421785881,1778153450000,-500.0,0.00012328,2]
[421785909,1778153450000,-789.33,0.00012328,2]
[421785940,1778153450000,-151.0,0.000126,2]
[421785882,1778153450000,-500.0,0.00012328,2]
[421785884,1778153450000,-500.0,0.00012328,2]
[421785886,1778153450000,-705.13,0.00012328,2]
[421785888,1778153450000,-500.0,0.00012328,2]
[421785883,1778153450000,-933.68,0.00012328,2]
[421785893,1778153450000,-500.0,0.00012328,2]
[421785895,1778153450000,-500.0,0.00012328,2]
[421785885,1778153450000,-500.0,0.00012328,2]
[421785894,1778153450000,-691.32,0.00012328,2]
[421785887,1778153450000,-340.12,0.00012328,2]
[421785889,1778153450000,-500.0,0.00012328,2]
[421785892,1778153450000,-500.0,0.00012328,2]
[421785920,1778153450000,-562.47,0.00012328,2]
[421785891,1778153450000,-500.0,0.00012328,2]
[421785897,1778153450000,-500.0,0.00012328,2]
[421785907,1778153450000,-500.0,0.00012328,2]
[421785908,1778153450000,-8774.04,0.00012328,2]
[421785898,1778153450000,-500.0,0.00012328,2]
[421785900,1778153450000,-500.0,0.00012328,2]
[421785901,1778153450000,-500.0,0.00012328,2]
[421785899,1778153450000,-688.82,0.00012328,2]
[421785903,1778153450000,-500.0,0.00012328,2]
[421785905,1778153450000,-1437.04,0.00012328,2]
[421785906,1778153450000,-1053.66,0.00012328,2]
[421785902,1778153450000,-1102.59,0.00012328,2]
[421785904,1778153450000,-500.0,0.00012328,2]
[421785911,1778153450000,-1433.04,0.00012328,2]
[421785890,1778153450000,-500.0,0.00012328,2]
[421785942,1778153450000,-861.1819,0.00012602,2]
[421785896,1778153450000,-500.0,0.00012328,2]
[421785944,1778153450000,-500.0,0.00012602,2]
[421785976,1778153450000,-500.0,0.00012602,2]
[421785978,1778153450000,-1053.66,0.00012602,2]
[421785979,1778153450000,-500.0,0.00012602,2]
[421785977,1778153450000,-1437.04,0.00012602,2]
[421785974,1778153450000,-1102.59,0.00012602,2]
[421785985,1778153450000,-500.0,0.00012602,2]
[421785987,1778153450000,-3435.07,0.00012602,2]
[421785988,1778153450000,-500.0,0.00012602,2]
[421785989,1778153450000,-500.0,0.00012602,2]
[421785997,1778153450000,-627.65,0.00012602,2]
[421785986,1778153450000,-500.0,0.00012602,2]
[421785992,1778153450000,-562.47,0.00012602,2]
[421785990,1778153450000,-500.0,0.00012602,2]
[421785996,1778153450000,-500.0,0.00012602,2]
[421785993,1778153450000,-500.0,0.00012602,2]
[421785991,1778153450000,-725.65,0.00012602,2]
[421785995,1778153450000,-951.06,0.00012602,2]
[421785994,1778153450000,-1196.29,0.00012602,2]
[421785999,1778153450000,-1835.42,0.00012602,2]
[421785998,1778153450000,-500.0,0.00012602,2]
[421786003,1778153450000,-500.0,0.00012602,2]
[421786006,1778153450000,-160.0,0.00012629,2]
[421786001,1778153450000,-646.34,0.00012602,2]
[421786004,1778153450000,-160.0,0.00012629,2]
[421786000,1778153450000,-500.0,0.00012602,2]
[421786002,1778153450000,-1663.58,0.00012602,2]
[421786005,1778153450000,-160.0,0.00012629,2]
[421786007,1778153450000,-161.57704075,0.00012629,2]
[421785945,1778153450000,-225.27007953,0.00012602,2]
[421785980,1778153450000,-8774.04,0.00012602,2]
[421785973,1778153450000,-500.0,0.00012602,2]
[421785975,1778153450000,-500.0,0.00012602,2]
[421785982,1778153450000,-525.5,0.00012602,2]
[421785946,1778153450000,-312.42,0.00012602,2]
[421785943,1778153450000,-500.0,0.00012602,2]
[421785948,1778153450000,-804.84,0.00012602,2]
[421785949,1778153450000,-545.51,0.00012602,2]
[421785959,1778153450000,-705.13,0.00012602,2]
[421785952,1778153450000,-500.0,0.00012602,2]
[421785950,1778153450000,-500.0,0.00012602,2]
[421785951,1778153450000,-500.0,0.00012602,2]
[421785954,1778153450000,-500.0,0.00012602,2]
[421785953,1778153450000,-500.0,0.00012602,2]
[421785955,1778153450000,-191.79,0.00012602,2]
[421785958,1778153450000,-500.0,0.00012602,2]
[421785984,1778153450000,-6499.89,0.00012602,2]
[421785956,1778153450000,-933.68,0.00012602,2]
[421785961,1778153450000,-500.0,0.00012602,2]
[421785957,1778153450000,-500.0,0.00012602,2]
[421785971,1778153450000,-688.82,0.00012602,2]
[421785972,1778153450000,-500.0,0.00012602,2]
[421785981,1778153450000,-789.33,0.00012602,2]
[421785960,1778153450000,-545.94,0.00012602,2]
[421785967,1778153450000,-500.0,0.00012602,2]
[421785965,1778153450000,-500.0,0.00012602,2]
[421785963,1778153450000,-500.0,0.00012602,2]
[421785983,1778153450000,-1433.04,0.00012602,2]
[421785969,1778153450000,-500.0,0.00012602,2]
[421785964,1778153450000,-500.0,0.00012602,2]
[421785970,1778153450000,-184.65,0.00012602,2]
[421785966,1778153450000,-691.32,0.00012602,2]
[421785962,1778153450000,-500.0,0.00012602,2]
[421785968,1778153450000,-500.0,0.00012602,2]
[421786014,1778153451000,-224.3742,0.00012739,2]
[421786010,1778153451000,-500.0,0.0001264,2]
[421786009,1778153451000,-500.0,0.0001264,2]
[421786008,1778153451000,-160.0,0.00012629,2]
[421786012,1778153451000,-168.33,0.00012662,2]
[421786011,1778153451000,-3718.06220767,0.00012655,2]
[421786015,1778153451000,-160.0,0.0001274,2]
[421786021,1778153451000,-159871.82974588,0.0001274,2]
[421786020,1778153451000,-5861.434497,0.0001274,2]
[421786016,1778153451000,-1411.379781,0.0001274,2]
[421786017,1778153451000,-2662.759563,0.0001274,2]
[421786023,1778153451000,-2399.16763074,8.29e-05,2]
[421786013,1778153451000,-172.92,0.00012692,2]
[421786018,1778153451000,-160.0,0.0001274,2]
[421786022,1778153451000,-1000.0,8.29e-05,2]
[421786019,1778153451000,-3010.717248,0.0001274,2]
[421786024,1778153455000,468.67692787,8.16e-05,2]
[421786028,1778153579000,5000.0,0.00019178,120]
[421786029,1778153633000,5000.0,8.16e-05,2]
[421786030,1778153670000,188.53052489,0.00015736,120]
[421786043,1778153751000,1014.6990579,0.00019178,120]
[421786044,1778153766000,451.62823053,0.000191,120]
[421786045,1778153789000,257.12493577,0.00015896,120]
[421786053,1778154631000,-399.86526697,8.992e-05,2]
[421786084,1778154638000,-500.0,0.00010684,2]
[421786086,1778154638000,-500.0,0.00010684,2]
[421786082,1778154638000,-500.0,0.00010684,2]
[421786092,1778154638000,-500.0,0.00010958,2]
[421786083,1778154638000,-500.0,0.00010684,2]
[421786085,1778154638000,-500.0,0.00010684,2]
[421786088,1778154638000,-190.22488969,0.00010684,2]
[421786095,1778154638000,-500.0,0.00010958,2]
[421786094,1778154638000,-570.1,0.00010958,2]
[421786101,1778154638000,-500.0,0.00010958,2]
[421786099,1778154638000,-552.36990074,0.00010958,2]
[421786093,1778154638000,-500.0,0.00010958,2]
[421786097,1778154638000,-500.0,0.00010958,2]
[421786098,1778154638000,-51.51009926,0.00010958,2]
[421786100,1778154638000,-322.87,0.00010958,2]
[421786089,1778154638000,-68443.7807821,0.00010858,2]
[421786102,1778154638000,-661.36,0.00010958,2]
[421786105,1778154638000,-500.57460081,0.00010958,2]
[421786104,1778154638000,-500.0,0.00010958,2]
[421786103,1778154638000,-500.0,0.00010958,2]
[421786096,1778154638000,-424.89,0.00010958,2]
[421786087,1778154638000,-500.0,0.00010684,2]
[421786075,1778154638000,-500.0,0.00010684,2]
[421786090,1778154638000,-500.0,0.00010958,2]
[421786106,1778154638000,-502.07762032,0.00010958,2]
[421786062,1778154638000,-1685.09803634,9.083e-05,2]
[421786061,1778154638000,-4600.13473303,8.992e-05,2]
[421786064,1778154638000,-2000.0,9.796e-05,2]
[421786063,1778154638000,-388.86885358,9.222e-05,2]
[421786065,1778154638000,-300.0,0.00010683,2]
[421786067,1778154638000,-500.0,0.00010684,2]
[421786077,1778154638000,-500.0,0.00010684,2]
[421786069,1778154638000,-500.0,0.00010684,2]
[421786066,1778154638000,-500.0,0.00010684,2]
[421786078,1778154638000,-500.0,0.00010684,2]
[421786068,1778154638000,-500.0,0.00010684,2]
[421786072,1778154638000,-500.0,0.00010684,2]
[421786071,1778154638000,-500.0,0.00010684,2]
[421786074,1778154638000,-500.0,0.00010684,2]
[421786073,1778154638000,-500.0,0.00010684,2]
[421786076,1778154638000,-500.0,0.00010684,2]
[421786070,1778154638000,-500.0,0.00010684,2]
[421786080,1778154638000,-398.00169912,0.00010684,2]
[421786081,1778154638000,-170.4443247,0.00010684,2]
[421786079,1778154638000,-500.0,0.00010684,2]
[421786091,1778154638000,-500.0,0.00010958,2]
[421786114,1778154638000,-500.0,0.00010958,2]
[421786139,1778154638000,-1017.9,0.00010958,2]
[421786113,1778154638000,-500.61341377,0.00010958,2]
[421786134,1778154638000,-497.15285951,0.00010958,2]
[421786137,1778154638000,-262.37499848,0.00010958,2]
[421786136,1778154638000,-500.0,0.00010958,2]
[421786135,1778154638000,-500.0,0.00010958,2]
[421786141,1778154638000,-500.0,0.00010958,2]
[421786151,1778154638000,-559.11,0.00010958,2]
[421786152,1778154638000,-500.0,0.00010958,2]
[421786142,1778154638000,-746.34,0.00010958,2]
[421786140,1778154638000,-500.0,0.00010958,2]
[421786138,1778154638000,-404.84,0.00010958,2]
[421786143,1778154638000,-781.0,0.00010958,2]
[421786146,1778154638000,-584.97483235,0.00010958,2]
[421786150,1778154638000,-500.0,0.00010958,2]
[421786107,1778154638000,-861.182,0.00010958,2]
[421786145,1778154638000,-9.98516765,0.00010958,2]
[421786149,1778154638000,-500.0,0.00010958,2]
[421786147,1778154638000,-500.0,0.00010958,2]
[421786155,1778154638000,-399.63608116,0.00010958,2]
[421786154,1778154638000,-6214.95,0.00010958,2]
[421786153,1778154638000,-500.0,0.00010958,2]
[421786144,1778154638000,-502.69792692,0.00010958,2]
[421786133,1778154638000,-500.0,0.00010958,2]
[421786148,1778154638000,-500.0,0.00010958,2]
[421786129,1778154638000,-500.0,0.00010958,2]
[421786132,1778154638000,-500.0,0.00010958,2]
[421786111,1778154638000,-500.0,0.00010958,2]
[421786109,1778154638000,-500.46953343,0.00010958,2]
[421786112,1778154638000,-503.31509503,0.00010958,2]
[421786108,1778154638000,-500.0,0.00010958,2]
[421786110,1778154638000,-500.0,0.00010958,2]
[421786115,1778154638000,-500.0,0.00010958,2]
[421786117,1778154638000,-500.66634116,0.00010958,2]
[421786119,1778154638000,-500.0,0.00010958,2]
[421786116,1778154638000,-500.96599181,0.00010958,2]
[421786118,1778154638000,-500.0,0.00010958,2]
[421786127,1778154638000,-500.0,0.00010958,2]
[421786131,1778154638000,-500.0,0.00010958,2]
[421786130,1778154638000,-500.0,0.00010958,2]
[421786126,1778154638000,-500.0,0.00010958,2]
[421786121,1778154638000,-500.0,0.00010958,2]
[421786120,1778154638000,-500.0,0.00010958,2]
[421786128,1778154638000,-500.0,0.00010958,2]
[421786124,1778154638000,-500.0,0.00010958,2]
[421786125,1778154638000,-500.0,0.00010958,2]
[421786122,1778154638000,-500.0,0.00010958,2]
[421786123,1778154638000,-500.0,0.00010958,2]
[421786157,1778154640000,-228.39016884,0.00010958,2]
[421786156,1778154640000,-233.41391884,0.00010958,2]
[421786166,1778154643000,-2204.58776884,0.00010958,2]
[421786164,1778154643000,-500.0,0.00010958,2]
[421786163,1778154643000,-271.60983116,0.00010958,2]
[421786165,1778154643000,-1015.07,0.00010958,2]
[421786168,1778154643000,-514.0,0.00010958,2]
[421786172,1778154643000,-467.39072498,0.00010958,2]
[421786169,1778154643000,-1689.98981154,0.00010958,2]
[421786170,1778154643000,-275.79946348,0.00010958,2]
[421786173,1778154643000,-500.0,0.00010958,2]
[421786174,1778154643000,-451.58377502,0.00010958,2]
[421786167,1778154643000,-2399.49223116,0.00010958,2]
[421786191,1778154646000,-500.0,0.00010958,2]
[421786192,1778154646000,-500.0,0.00010958,2]
[421786193,1778154646000,-500.0,0.00010958,2]
[421786190,1778154646000,-500.0,0.00010958,2]
[421786188,1778154646000,-500.0,0.00010958,2]
[421786189,1778154646000,-1300.09,0.00010958,2]
[421786186,1778154646000,-252.21064633,0.00010958,2]
[421786187,1778154646000,-500.0,0.00010958,2]
[421786194,1778154646000,-1178.37,0.00010958,2]
[421786180,1778154646000,-500.0,0.00010958,2]
[421786184,1778154646000,-502.42949951,0.00010958,2]
[421786183,1778154646000,-531.92,0.00010958,2]
[421786182,1778154646000,-502.91567821,0.00010958,2]
[421786178,1778154646000,-500.0,0.00010958,2]
[421786179,1778154646000,-500.0,0.00010958,2]
[421786177,1778154646000,-500.0,0.00010958,2]
[421786176,1778154646000,-673.67,0.00010958,2]
[421786175,1778154646000,-395.78622498,0.00010958,2]
[421786185,1778154646000,-247.78935367,0.00010958,2]
[421786195,1778154646000,-500.0,0.00010958,2]
[421786181,1778154646000,-500.0,0.00010958,2]
[421786198,1778154646000,-500.0,0.00010958,2]
[421786212,1778154646000,-500.0,0.00011232,2]
[421786216,1778154646000,-643.91,0.00011232,2]
[421786210,1778154646000,-524.92,0.00011232,2]
[421786213,1778154646000,-280.55,0.00011232,2]
[421786211,1778154646000,-478.24,0.00011232,2]
[421786215,1778154646000,-500.0,0.00011232,2]
[421786209,1778154646000,-458.86524722,0.00011222,2]
[421786207,1778154646000,-500.0,0.00010958,2]
[421786217,1778154646000,-251.41527685,0.00011232,2]
[421786214,1778154646000,-570.1,0.00011232,2]
[421786206,1778154646000,-500.0,0.00010958,2]
[421786208,1778154646000,-233.01639717,0.00011057,2]
[421786196,1778154646000,-500.0,0.00010958,2]
[421786199,1778154646000,-500.0,0.00010958,2]
[421786205,1778154646000,-500.0,0.00010958,2]
[421786197,1778154646000,-500.0,0.00010958,2]
[421786203,1778154646000,-500.0,0.00010958,2]
[421786204,1778154646000,-500.0,0.00010958,2]
[421786201,1778154646000,-500.0,0.00010958,2]
[421786202,1778154646000,-450.22393587,0.00010958,2]
[421786200,1778154646000,-500.0,0.00010958,2]
[421787075,1778154713000,200.0484846,0.00016438,120]
[421787042,1778154713000,200.0,0.00016438,120]
[421787012,1778154713000,200.0,0.00016438,120]
[421786986,1778154713000,200.0,0.00016438,120]
[421787195,1778154722000,166.033991,7.714e-05,2]
[421787194,1778154722000,166.033991,5.143e-05,2]
[421787199,1778154842000,10000.0,0.00019178,120]
[421787200,1778154850000,10000.0,0.00019178,120]
[421787201,1778154857000,10000.0,0.00019178,120]
[421787202,1778154868000,10000.0,0.00019178,120]
[421787206,1778154954000,10000.0,0.00019178,120]
[421787207,1778154961000,10000.0,0.00019178,120]
[421787209,1778154968000,10000.0,0.00019178,120]
[421787210,1778154973000,10000.0,0.00019178,120]
[421787211,1778154980000,10000.0,0.00019178,120]
[421787212,1778154986000,10000.0,0.00019178,120]
[421787213,1778154993000,10000.0,0.00019178,120]
[421787214,1778155000000,10000.0,0.00019178,120]
[421787217,1778155006000,10000.0,0.00019178,120]
[421787218,1778155012000,10000.0,0.00019178,120]
[421787219,1778155019000,10000.0,0.00019178,120]
[421787220,1778155025000,10000.0,0.00019178,120]
[421787221,1778155037000,4655.32,0.00019178,120]
[421787222,1778155053000,4655.0,0.00019178,120]
[421787238,1778155235000,-581.32117959,0.0001008,2]
[421787240,1778155350000,45268.9640087,0.00019178,120]
[421787243,1778155418000,451.28683313,0.0001651,120]
[421787242,1778155418000,451.28683313,0.00016465,120]
[421787244,1778155419000,451.28683313,0.00016554,120]
[421787247,1778155476000,187.345818,4.712e-05,2]
[421787252,1778155524000,80205.88739948,7.6e-05,2]
[421787284,1778155832000,-5000.0,8.32e-05,2]
[421787288,1778155832000,-893.90684644,8.404e-05,2]
[421787286,1778155832000,-791.1911899,8.404e-05,2]
[421787348,1778155838000,-5990.07676037,0.0001,2]
[421787360,1778155838000,-300.0,0.00010284,2]
[421787356,1778155838000,-485.41396517,0.0001008,2]
[421787357,1778155838000,-420.0,0.00010159,2]
[421787355,1778155838000,-500.0,0.0001008,2]
[421787354,1778155838000,-500.0,0.0001008,2]
[421787353,1778155838000,-500.0,0.0001008,2]
[421787352,1778155838000,-500.0,0.0001008,2]
[421787351,1778155838000,-500.0,0.0001008,2]
[421787349,1778155838000,-676.88283032,0.0001,2]
[421787350,1778155838000,-500.0,0.0001008,2]
[421787346,1778155838000,-362.4775019,0.0001,2]
[421787341,1778155838000,-587.0,9.235e-05,2]
[421787345,1778155838000,-32676.21695632,9.425e-05,2]
[421787343,1778155838000,-300.0,9.328e-05,2]
[421787344,1778155838000,-187.345818,9.423e-05,2]
[421787339,1778155838000,-300.0,9.235e-05,2]
[421787340,1778155838000,-300.0,9.235e-05,2]
[421787342,1778155838000,-407.24566016,9.282e-05,2]
[421787337,1778155838000,-300.0,9.235e-05,2]
[421787336,1778155838000,-1051.4425976,8.489e-05,2]
[421787338,1778155838000,-213.0,9.235e-05,2]
[421787335,1778155838000,-3314.90196366,8.404e-05,2]
[421787362,1778155838000,-300.0,0.00010284,2]
[421787347,1778155838000,-13798.05614394,0.0001,2]
[421787359,1778155838000,-300.0,0.00010284,2]
[421787373,1778155838000,-600.0,0.00010284,2]
[421787363,1778155838000,-300.0,0.00010284,2]
[421787366,1778155838000,-300.0,0.00010284,2]
[421787388,1778155838000,-187.53349308,0.00010958,2]
[421787387,1778155838000,-500.0,0.00010958,2]
[421787385,1778155838000,-500.0,0.00010958,2]
[421787386,1778155838000,-500.0,0.00010958,2]
[421787384,1778155838000,-224.39540713,0.00010958,2]
[421787383,1778155838000,-500.0,0.00010958,2]
[421787382,1778155838000,-500.0,0.00010958,2]
[421787380,1778155838000,-500.0,0.00010958,2]
[421787378,1778155838000,-184.7,0.00010958,2]
[421787379,1778155838000,-500.0,0.00010958,2]
[421787372,1778155838000,-300.0,0.00010284,2]
[421787377,1778155838000,-1266.0787,0.00010958,2]
[421787381,1778155838000,-548.92,0.00010958,2]
[421787376,1778155838000,-500.0,0.00010956,2]
[421787364,1778155838000,-300.0,0.00010284,2]
[421787375,1778155838000,-429.09333083,0.00010618,2]
[421787365,1778155838000,-300.0,0.00010284,2]
[421787358,1778155838000,-300.0,0.00010284,2]
[421787361,1778155838000,-300.0,0.00010284,2]
[421787368,1778155838000,-300.0,0.00010284,2]
[421787369,1778155838000,-300.0,0.00010284,2]
[421787370,1778155838000,-300.0,0.00010284,2]
[421787371,1778155838000,-300.0,0.00010284,2]
[421787374,1778155838000,-166.033991,0.00010285,2]
[421787367,1778155838000,-300.0,0.00010284,2]
[421787428,1778155843000,-516.85,0.00010958,2]
[421787423,1778155843000,-500.0,0.00010958,2]
[421787426,1778155843000,-568.84,0.00010958,2]
[421787424,1778155843000,-500.0,0.00010958,2]
[421787429,1778155843000,-500.0,0.00010958,2]
[421787427,1778155843000,-500.0,0.00010958,2]
[421787437,1778155843000,-500.0,0.00010958,2]
[421787432,1778155843000,-500.0,0.00010958,2]
[421787431,1778155843000,-551.92,0.00010958,2]
[421787433,1778155843000,-500.0,0.00010958,2]
[421787425,1778155843000,-500.0,0.00010958,2]
[421787443,1778155843000,-500.0,0.00010958,2]
[421787430,1778155843000,-500.0,0.00010958,2]
[421787422,1778155843000,-500.0,0.00010958,2]
[421787409,1778155843000,-500.0,0.00010958,2]
[421787421,1778155843000,-500.0,0.00010958,2]
[421787419,1778155843000,-500.0,0.00010958,2]
[421787418,1778155843000,-633.8,0.00010958,2]
[421787416,1778155843000,-249.28,0.00010958,2]
[421787414,1778155843000,-631.27,0.00010958,2]
[421787413,1778155843000,-547.38,0.00010958,2]
[421787410,1778155843000,-500.0,0.00010958,2]
[421787411,1778155843000,-500.0,0.00010958,2]
[421787412,1778155843000,-522.59,0.00010958,2]
[421787415,1778155843000,-500.0,0.00010958,2]
[421787408,1778155843000,-312.46650692,0.00010958,2]
[421787417,1778155843000,-177.13,0.00010958,2]
[421787407,1778155843000,-5000.0,8.32e-05,2]
[421787434,1778155843000,-532.33902858,0.00010958,2]
[421787420,1778155843000,-500.0,0.00010958,2]
[421787440,1778155843000,-500.0,0.00010958,2]
[421787435,1778155843000,-500.0,0.00010958,2]
[421787436,1778155843000,-638.2,0.00010958,2]
[421787439,1778155843000,-500.0,0.00010958,2]
[421787466,1778155843000,-500.0,0.00010958,2]
[421787464,1778155843000,-500.0,0.00010958,2]
[421787465,1778155843000,-715.25,0.00010958,2]
[421787462,1778155843000,-500.0,0.00010958,2]
[421787463,1778155843000,-975.49,0.00010958,2]
[421787461,1778155843000,-500.0,0.00010958,2]
[421787468,1778155843000,-500.0,0.00010958,2]
[421787467,1778155843000,-500.0,0.00010958,2]
[421787459,1778155843000,-500.0,0.00010958,2]
[421787460,1778155843000,-500.0,0.00010958,2]
[421787458,1778155843000,-748.46,0.00010958,2]
[421787456,1778155843000,-500.0,0.00010958,2]
[421787457,1778155843000,-500.0,0.00010958,2]
[421787454,1778155843000,-500.0,0.00010958,2]
[421787469,1778155843000,-5955.99,0.00010958,2]
[421787449,1778155843000,-500.0,0.00010958,2]
[421787453,1778155843000,-500.0,0.00010958,2]
[421787442,1778155843000,-500.0,0.00010958,2]
[421787470,1778155843000,-500.0,0.00010958,2]